bitfinex/quotes_ETHUSD_20260304
["timestamp","ask_amount","ask_price","bid_price","bid_amount"]
[1772660990370,0.51496213,2150.2,2149.7,1.70383605]
[1772660990764,0.51496213,2150.2,2149.8,0.54088505]
[1772660991065,0.51596213,2150.3,2149.8,0.54088505]
[1772660991569,1.67859253,2150.3,2149.9,1.85488505]
[1772660991892,0.51496213,2150.2,2149.9,1.85488505]
[1772660992394,0.51496213,2150.2,2149.9,1.314]
[1772660994394,0.51496213,2150.2,2149.9,2.47684099]
[1772660995199,0.51496213,2150.2,2150.1,0.0011]
[1772660997899,1.67764467,2150.2,2150.1,0.0011]
[1772660998096,0.51496213,2150.1,2149.6,1.70494381]
[1772660998395,0.51496213,2150.1,2149.6,0.0011]
[1772660998815,0.51496213,2150.1,2149.3,0.55122648]
[1772660998971,0.51496213,2150.0,2149.3,0.01034143]
[1772660999283,0.51496213,2149.9,2149.3,0.0011]
[1772660999893,0.51496213,2149.7,2149.3,0.0011]
[1772661000394,1.67772596,2150.1,2149.4,0.54198505]
[1772661000600,0.51496213,2150.1,2149.5,0.58740749]
[1772661000899,0.51496213,2150.1,2149.7,0.54088505]
[1772661001276,1.67864326,2150.3,2149.7,0.54088505]
[1772661001478,0.51496213,2150.2,2149.7,0.54088505]
[1772661001997,1.67769589,2150.2,2149.7,1.70383075]
[1772661002795,1.67769589,2150.2,2149.7,0.54088505]
[1772661003499,0.51496213,2150.1,2149.4,0.0011]
[1772661003999,1.16279069,2150.0,2149.4,0.0011]
[1772661004182,0.51496213,2149.9,2149.4,0.0011]
[1772661004580,1.67773727,2150.1,2149.4,0.54198505]
[1772661005183,1.67773727,2150.1,2149.5,0.54088505]
[1772661005386,0.001,2150.3,2149.5,0.54088505]
[1772661007100,0.001,2150.3,2149.7,0.54088505]
[1772661008098,0.001,2150.3,2149.7,0.54198505]
[1772661008301,0.001,2150.1,2149.7,0.54198505]
[1772661009478,0.001,2150.1,2149.9,0.54088505]
[1772661012108,0.001,2150.1,2149.9,1.70372164]
[1772661014190,0.001,2150.1,2149.9,3.01672164]
[1772661017714,0.001,2150.1,2149.9,1.85388505]
[1772661019914,0.001,2150.0,2149.9,1.85388505]
[1772661020612,0.53319754,2150.0,2149.7,0.0011]
[1772661021817,0.53219754,2149.8,2149.6,1.319]
[1772661022286,0.001,2150.0,2149.7,0.48607179]
[1772661026516,0.50034435,2150.0,2149.6,1.319]
[1772661027216,0.50034435,2150.0,2149.6,1.82102947]
[1772661027424,0.50034435,2150.0,2149.6,2.98402924]
[1772661028203,0.50034435,2150.0,2149.7,0.50202947]
[1772661028598,0.001,2150.0,2149.8,0.50202947]
[1772661028816,1.66313789,2150.0,2149.6,2.98399533]
[1772661029016,0.49934435,2149.9,2149.6,2.48196586]
[1772661029197,0.49934435,2149.9,2149.6,2.98399533]
[1772661029619,0.49934435,2149.9,2149.6,1.82102947]
[1772661029800,0.49934435,2149.9,2149.6,1.319]
[1772661030204,0.49934435,2149.9,2149.6,2.98402697]
[1772661030399,0.001,2150.0,2149.6,2.98402697]
[1772661030630,1.16379413,2150.0,2149.6,2.98402697]
[1772661031628,1.16379413,2150.0,2149.7,0.0011]
[1772661031800,1.16379413,2150.0,2149.7,0.50312947]
[1772661032125,0.001,2149.9,2149.7,0.50312947]
[1772661032822,0.001,2149.9,2149.7,0.0011]
[1772661032996,0.001,2149.9,2149.7,0.50312947]
[1772661034095,0.50034435,2149.9,2149.7,0.0011]
[1772661039117,0.001,2149.9,2149.7,0.0011]
[1772661041736,0.50034435,2149.9,2149.7,0.0011]
[1772661047035,0.49934435,2149.8,2149.7,0.0011]
[1772661047249,1.16386141,2149.9,2149.7,0.0011]
[1772661047454,0.001,2149.9,2149.7,0.0011]
[1772661049719,0.49473168,2149.9,2149.7,0.0011]
[1772661060850,0.001,2149.9,2149.7,0.53225929]
[1772661061260,0.001,2150.0,2149.8,0.53115929]
[1772661063427,0.001,2150.0,2149.8,1.69402442]
[1772661063627,0.001,2150.0,2149.9,0.53115929]
[1772661064749,0.001,2150.0,2149.9,1.87115929]
[1772661065632,0.001,2150.0,2149.9,3.03400407]
[1772661069959,0.001,2150.3,2150.0,0.53115929]
[1772661070174,1.65610908,2150.8,2150.0,0.53115929]
[1772661070456,0.001,2150.5,2150.0,0.53115929]
[1772661070659,1.16229427,2151.0,2150.2,0.53115929]
[1772661070962,0.49373168,2150.9,2150.4,0.53115929]
[1772661073037,1.65604256,2150.9,2150.5,1.69367963]
[1772661073763,0.49373168,2150.9,2150.5,1.69367963]
[1772661074265,1.65604666,2150.9,2150.5,0.53115929]
[1772661075461,0.49373168,2150.9,2150.5,1.69367963]
[1772661075660,1.65603773,2150.9,2150.5,1.69367963]
[1772661075833,0.49373168,2150.9,2150.5,1.69367963]
[1772661076451,1.65604335,2150.9,2150.5,0.53115929]
[1772661076737,0.49373168,2150.5,2150.4,1.348]
[1772661076961,0.49373168,2150.5,2150.2,0.53115929]
[1772661076962,0.49373168,2150.7,2150.2,0.53115929]
[1772661077137,0.001,2150.4,2150.2,0.53115929]
[1772661078034,0.001,2150.4,2150.3,1.348]
[1772661078464,0.001,2150.4,2150.3,1.87915929]
[1772661079351,0.001,2150.6,2150.3,1.87915929]
[1772661079352,0.001,2150.6,2150.4,0.50582681]
[1772661080253,0.001,2150.6,2150.4,1.66836872]
[1772661080562,0.001,2150.6,2150.4,0.50582681]
[1772661080757,0.001,2150.6,2150.4,1.66839754]
[1772661082973,0.001,2151.2,2150.6,0.50582681]
[1772661083263,0.001,2151.2,2150.4,1.16257073]
[1772661083264,1.65566467,2151.2,2150.8,0.50582681]
[1772661083568,0.49251708,2151.1,2150.8,0.50582681]
[1772661083968,0.001,2151.2,2150.8,0.50582681]
[1772661084471,0.49351708,2151.2,2150.8,0.50582681]
[1772661084776,0.49251708,2150.9,2150.7,1.351]
[1772661084948,0.49251708,2150.9,2150.2,0.50582681]
[1772661086153,0.49251708,2150.9,2150.3,1.353]
[1772661087277,0.49285999,2150.7,2150.3,1.353]
[1772661089867,0.49285999,2150.5,2150.0,0.0011]
[1772661092088,1.65538033,2150.5,2150.4,0.0011]
[1772661092293,0.49285999,2150.4,2150.0,0.0011]
[1772661092655,0.49285999,2150.4,2150.1,0.0011]
[1772661094280,0.49285999,2150.2,2150.1,0.0011]
[1772661095788,1.65548846,2150.3,2150.1,0.0011]
[1772661095965,1.65546294,2150.4,2150.1,0.0011]
[1772661099472,0.49285999,2150.3,2149.9,1.3551]
[1772661101089,0.49285999,2150.3,2149.8,0.51167621]
[1772661101297,0.49285999,2150.2,2149.9,0.51057621]
[1772661103199,0.49285999,2150.3,2149.9,0.51057621]
[1772661103371,1.65552076,2150.3,2149.9,0.51057621]
[1772661104881,0.49285999,2150.2,2150.1,0.0011]
[1772661105098,0.49385999,2150.2,2150.1,0.0011]
[1772661105306,1.65654253,2150.2,2150.1,0.0011]
[1772661105687,1.65654253,2150.2,2149.8,0.0011]
[1772661105688,0.49285999,2150.1,2149.8,0.0011]
[1772661108482,1.16279069,2150.0,2149.8,0.0011]
[1772661108685,1.67389737,2150.0,2149.8,0.0011]
[1772661109380,0.51110668,2150.0,2149.8,0.0011]
[1772661111419,0.51210668,2150.2,2149.8,0.49158484]
[1772661113525,1.16273661,2150.1,2149.8,0.49158484]
[1772661113695,1.67384329,2150.1,2149.8,0.49158484]
[1772661114018,0.51110668,2150.0,2149.8,0.0011]
[1772661116321,1.67392533,2150.0,2149.8,0.0011]
[1772661117218,0.001,2149.9,2149.8,0.0011]
[1772661117818,0.001,2149.9,2149.8,0.49158484]
[1772661118416,0.001,2149.9,2149.8,0.0011]
[1772661120717,0.001,2150.2,2149.8,0.49158484]
[1772661121796,0.001,2150.2,2149.9,0.04651378]
[1772661122128,1.16369287,2150.2,2150.0,0.49048484]
[1772661123613,0.51110668,2150.1,2149.8,0.0011]
[1772661123814,0.51110668,2150.1,2149.8,1.3581]
[1772661124522,1.67389737,2150.0,2149.8,1.3581]
[1772661126916,0.001,2150.5,2149.9,0.49048484]
[1772661127306,0.001,2150.5,2149.9,0.53699863]
[1772661128624,0.001,2150.5,2150.1,0.49048484]
[1772661128929,0.001,2150.5,2150.3,0.49048484]
[1772661129228,0.001,2150.5,2150.4,1.84848484]
[1772661129725,1.16318587,2151.2,2150.5,0.49048484]
[1772661130026,1.67429255,2151.2,2150.5,0.49048484]
[1772661130327,0.51110668,2151.1,2150.5,0.49048484]
[1772661131195,1.67333257,2151.1,2150.7,0.49048484]
[1772661132330,0.51110668,2151.1,2150.7,0.49048484]
[1772661132519,0.001,2151.0,2150.7,0.49048484]
[1772661132718,0.001,2151.2,2150.7,0.49048484]
[1772661132931,0.001,2151.2,2150.9,0.49048484]
[1772661133098,0.001,2151.2,2151.1,0.49048484]
[1772661133296,0.001,2151.5,2151.2,0.49048484]
[1772661134425,0.001,2151.5,2151.4,0.49048484]
[1772661135199,0.00099999,2151.5,2151.4,1.65251886]
[1772661135730,1.67361882,2152.4,2151.5,0.49048484]
[1772661138117,1.67361882,2152.4,2151.7,0.49048484]
[1772661138408,1.16251214,2152.4,2151.9,0.49048484]
[1772661138807,0.001,2152.4,2151.9,0.49048484]
[1772661140204,0.51021809,2152.4,2151.8,1.85360372]
[1772661140400,0.51021809,2152.4,2151.9,0.49360372]
[1772661140624,0.001,2152.2,2151.9,0.49360372]
[1772661140804,0.001,2152.4,2151.9,0.49360372]
[1772661142134,1.16249414,2152.4,2152.0,0.49360372]
[1772661142429,0.001,2152.4,2152.0,0.49360372]
[1772661144937,0.001,2152.4,2152.0,1.6553108]
[1772661145265,0.51021809,2152.4,2152.0,0.49360372]
[1772661146323,0.51021809,2152.4,2151.9,0.03527994]
[1772661146324,0.47003555,2152.2,2151.9,0.03527994]
[1772661148239,1.16165605,2152.1,2151.9,0.03527994]
[1772661148934,1.16165605,2152.1,2151.5,4.64791671]
[1772661148935,0.47003555,2152.0,2151.4,0.47313233]
[1772661149142,0.47003555,2152.0,2151.4,1.83313233]
[1772661149346,0.47003555,2152.0,2151.5,0.47313233]
[1772661150241,0.47003555,2152.0,2151.4,1.36]
[1772661150538,0.47003555,2151.8,2151.4,1.83313233]
[1772661151049,1.16176402,2151.9,2151.4,1.83313233]
[1772661151408,1.63179957,2151.9,2151.4,1.83313233]
[1772661151642,0.47003555,2151.8,2151.4,1.83313233]
[1772661151940,1.16154811,2152.3,2151.5,0.47313233]
[1772661152240,0.47003555,2152.2,2151.5,0.47313233]
[1772661152443,0.47003555,2152.0,2151.6,1.3571]
[1772661154224,0.47003555,2152.0,2151.4,0.0011]
[1772661154420,1.63179957,2151.9,2151.4,0.0011]
[1772661154924,1.63179957,2151.9,2151.4,0.47423233]
[1772661155338,1.63179957,2151.9,2151.4,1.83123233]
[1772661155510,1.16176402,2151.9,2151.5,0.47313233]
[1772661156314,0.47103555,2152.2,2151.6,1.63505833]
[1772661156509,0.47103555,2152.2,2151.7,0.47313233]
[1772661156819,0.47103555,2152.2,2151.5,0.47313233]
[1772661158522,0.47003555,2152.0,2151.5,0.47313233]
[1772661158843,0.47003555,2152.0,2151.4,1.88577871]
[1772661159347,0.47003555,2152.0,2151.5,0.47313233]
[1772661160546,1.16165605,2152.1,2151.6,0.47313233]
[1772661160721,1.6316916,2152.1,2151.6,0.47313233]
[1772661160922,0.47003555,2152.0,2151.6,0.47313233]
[1772661162037,0.47003555,2152.0,2151.4,0.05540266]
[1772661162349,0.47003555,2152.0,2151.4,1.41340266]
[1772661162852,0.47003555,2151.8,2151.4,1.3591]
[1772661163249,0.47003555,2151.8,2151.3,0.47313233]
[1772661164448,0.47003555,2151.8,2151.3,1.83113233]
[1772661164646,0.47003555,2151.8,2151.7,0.0011]
[1772661164844,1.63190755,2151.7,2151.3,1.83113233]
[1772661165347,1.63190755,2151.7,2151.5,0.0011]
[1772661166729,1.63196155,2151.6,2151.5,0.0011]
[1772661167034,0.47003555,2151.5,2151.1,0.05473217]
[1772661167235,0.47003555,2151.5,2151.1,0.50099117]
[1772661167417,1.161926,2151.6,2151.1,0.50099117]
[1772661167614,1.161926,2151.6,2151.2,0.446259]
[1772661171650,1.6711384,2151.6,2151.2,0.446259]
[1772661171955,0.5092124,2151.5,2151.2,0.446259]
[1772661172153,1.161926,2151.6,2151.2,0.446259]
[1772661172554,1.6711384,2151.6,2151.2,0.446259]
[1772661177461,1.6718561,2152.2,2151.3,0.49079922]
[1772661177645,1.6718561,2152.2,2151.4,0.44551667]
[1772661177849,1.6718561,2152.2,2151.6,0.44441667]
[1772661178042,1.6718561,2152.2,2151.7,1.80280927]
[1772661178441,1.6718561,2152.2,2151.8,0.44480927]
[1772661178933,0.5092124,2152.1,2151.7,1.358]
[1772661179138,0.5092124,2152.1,2151.7,1.80259734]
[1772661179338,0.5092124,2152.1,2151.7,2.96445368]
[1772661179647,0.5092124,2152.1,2151.7,1.80259734]
[1772661180970,1.67088492,2152.1,2151.8,0.44498753]
[1772661181169,0.5092124,2152.0,2151.7,1.358]
[1772661181373,0.5092124,2152.0,2151.4,0.05472469]
[1772661182181,1.16167252,2152.1,2151.5,0.44456473]
[1772661182364,1.16261124,2152.2,2151.5,0.44456473]
[1772661182547,1.16261124,2152.2,2151.7,0.44456473]
[1772661183265,1.16261124,2152.2,2151.7,1.60641612]
[1772661183468,0.001,2152.2,2151.8,0.44495448]
[1772661185283,1.67086845,2152.1,2151.6,2.96445023]
[1772661185454,1.67086845,2152.1,2151.6,1.80253181]
[1772661185647,1.67086845,2152.1,2151.6,2.96445197]
[1772661186853,0.001,2152.2,2151.7,0.44432399]
[1772661187374,0.001,2152.2,2151.8,1.60594222]
[1772661187757,0.001,2152.2,2151.8,0.44412421]
[1772661187954,0.5102124,2152.2,2151.6,2.96404001]
[1772661188369,0.5102124,2152.2,2151.6,2.5199158]
[1772661188675,0.5102124,2152.2,2151.7,0.4439268]
[1772661189377,1.6718535,2152.2,2151.8,0.0011]
[1772661189676,0.001,2152.0,2151.8,0.0011]
[1772661196079,0.001,2152.0,2151.8,0.44457345]
[1772661201282,0.001,2152.0,2151.8,1.60638422]
[1772661201487,0.001,2152.0,2151.8,0.44457345]
[1772661201661,0.46966067,2152.0,2151.8,0.0011]
[1772661203794,1.63139931,2152.0,2151.8,0.0011]
[1772661205390,0.46866067,2151.9,2151.8,0.0011]
[1772661205771,1.63042469,2151.9,2151.8,0.0011]
[1772661206288,0.45949208,2151.8,2151.5,0.05430975]
[1772661207196,0.45949208,2151.8,2151.4,0.0011]
[1772661207402,0.45949208,2151.8,2151.3,0.0011]
[1772661208073,0.45949208,2151.6,2151.3,0.0011]
[1772661210170,1.62142042,2151.6,2151.3,0.0011]
[1772661214504,1.62142042,2151.6,2151.5,0.0011]
[1772661218098,0.45949208,2151.5,2151.3,0.0011]
[1772661219610,1.62150799,2151.5,2151.3,0.0011]
[1772661219911,1.621481,2151.5,2151.3,0.0011]
[1772661220216,0.45949208,2151.4,2151.3,0.0011]
[1772661221213,1.621481,2151.5,2151.3,0.0011]
[1772661221713,1.621481,2151.5,2151.0,0.0011]
[1772661221714,0.45949208,2151.4,2151.0,0.0011]
[1772661222005,0.45949208,2151.4,2150.9,0.0011]
[1772661222209,0.45949208,2151.4,2150.6,0.44136083]
[1772661222408,0.45949208,2151.4,2150.7,0.0011]
[1772661222832,0.45949208,2151.4,2150.7,1.3591]
[1772661223687,0.45949208,2151.2,2150.7,1.3591]
[1772661224092,1.62158011,2151.3,2150.8,0.44096796]
[1772661224600,1.16208803,2151.3,2150.8,0.44096796]
[1772661224802,0.45949208,2151.2,2150.8,0.44096796]
[1772661225891,0.45949208,2151.2,2150.8,1.60328169]
[1772661226092,1.62156488,2151.4,2150.9,0.44168407]
[1772661226700,1.62156488,2151.4,2151.0,0.44168407]
[1772661227031,1.62256488,2151.4,2151.0,0.44168407]
[1772661228527,0.50727711,2151.3,2151.0,0.44168407]
[1772661229790,0.50727711,2151.3,2151.1,0.0011]
[1772661230515,1.66937447,2151.3,2151.1,0.0011]
[1772661230901,1.66937082,2151.3,2151.1,0.0011]
[1772661232215,1.66936573,2151.3,2151.1,0.0011]
[1772661232424,0.50727711,2151.3,2151.1,0.0011]
[1772661232717,0.001,2151.4,2151.1,0.44040818]
[1772661232891,1.67031299,2151.4,2151.1,0.44040818]
[1772661233491,0.50827711,2151.4,2151.1,0.44040818]
[1772661233892,1.67031524,2151.4,2151.1,0.44040818]
[1772661236126,1.67031524,2151.4,2151.1,0.0011]
[1772661237429,0.50727711,2151.3,2151.1,0.0011]
[1772661238827,0.50727711,2151.3,2151.1,0.0022]
[1772661239126,0.001,2151.2,2151.1,0.0022]
[1772661241520,0.001,2151.2,2151.1,0.4400123]
[1772661242431,0.50827711,2151.2,2151.1,0.0022]
[1772661242626,0.50827711,2151.2,2151.0,0.0011]
[1772661243507,0.50727711,2151.1,2151.0,0.0011]
[1772661250250,0.50727711,2151.1,2150.9,0.0011]
[1772661250532,0.50727711,2151.0,2150.6,0.0011]
[1772661250919,0.50727711,2151.0,2150.1,0.0011]
[1772661250920,0.50727711,2150.9,2150.1,0.0011]
[1772661251531,0.50727711,2150.9,2150.1,1.60345755]
[1772661251831,0.50727711,2150.9,2150.2,0.43962281]
[1772661252415,0.50727711,2150.7,2150.2,0.43962281]
[1772661253040,0.50727711,2150.7,2150.6,0.0011]
[1772661255315,1.66968934,2150.7,2150.6,0.0011]
[1772661260042,0.47262833,2150.6,2150.0,0.0011]
[1772661260242,0.47262833,2150.6,2150.0,0.44049582]
[1772661261047,0.47262833,2150.6,2150.0,1.60327694]
[1772661261247,0.47262833,2150.6,2150.1,0.43927136]
[1772661262045,1.16252034,2150.5,2150.1,0.43927136]
[1772661262224,1.63514867,2150.5,2150.1,1.16272309]
[1772661262423,1.63514867,2150.5,2150.2,0.43914833]
[1772661263920,1.16250499,2150.6,2150.2,0.43914833]
[1772661264123,0.001,2151.0,2150.2,1.16268103]
[1772661264449,0.47262833,2150.7,2150.3,0.43890649]
[1772661264638,0.47362833,2151.0,2150.3,0.43890649]
[1772661265376,0.001,2150.5,2150.3,0.44000649]
[1772661266439,0.001,2150.5,2150.3,1.60262389]
[1772661266637,0.001,2150.5,2150.4,0.43855405]
[1772661267251,1.16240062,2150.8,2150.4,0.43743926]
[1772661269122,1.63989079,2150.8,2150.4,0.43743926]
[1772661269752,0.47749017,2150.8,2150.4,1.60000878]
[1772661270053,1.16330316,2151.0,2150.6,0.43721362]
[1772661270752,1.64079333,2151.0,2150.6,0.43721362]
[1772661271653,0.47749017,2150.9,2150.5,1.371]
[1772661271962,0.47749017,2150.9,2150.3,0.0011]
[1772661272158,0.47749017,2150.9,2149.9,0.0011]
[1772661272528,0.47749017,2150.7,2149.7,0.0011]
[1772661272842,0.47749017,2150.5,2149.7,0.0011]
[1772661275161,0.47749017,2150.3,2149.7,0.0011]
[1772661277469,1.16268254,2150.2,2149.9,0.0011]
[1772661277644,0.47749017,2150.1,2149.9,0.0011]
[1772661277847,0.47749017,2150.1,2149.7,0.0011]
[1772661278155,0.47749017,2150.1,2149.4,0.0011]
[1772661278156,0.47749017,2149.9,2149.4,0.0011]
[1772661278328,0.47749017,2149.9,2149.2,0.0011]
[1772661278731,0.47749017,2149.7,2149.0,0.0011]
[1772661279655,0.47749017,2149.5,2149.0,0.0011]
[1772661282457,0.47749017,2149.3,2148.8,0.0011]
[1772661282661,0.47749017,2149.1,2148.2,0.03616355]
[1772661283043,0.47749017,2149.1,2148.0,0.43806743]
[1772661283365,0.47749017,2149.1,2148.0,1.60193298]
[1772661284234,0.47749017,2149.1,2148.1,0.43787768]
[1772661284431,0.47749017,2148.9,2148.1,1.60166918]
[1772661284655,0.47749017,2148.9,2148.1,0.43787768]
[1772661284863,0.47749017,2148.9,2148.2,0.43787768]
[1772661286856,0.47749017,2148.7,2148.2,0.43787768]
[1772661289579,1.64938093,2148.6,2148.4,0.0011]
[1772661292765,0.48583258,2149.1,2148.4,0.0011]
[1772661293997,0.48583258,2149.1,2148.4,0.43800896]
[1772661294368,1.16333178,2149.0,2148.4,0.43800896]
[1772661294570,0.48583258,2148.9,2148.4,0.43800896]
[1772661295967,0.48583258,2148.9,2148.1,0.0011]
[1772661296310,0.50353344,2148.8,2147.5,1.16414305]
[1772661296476,0.50353344,2148.6,2147.5,1.16414305]
[1772661297808,0.50353344,2148.6,2147.4,1.315]
[1772661298007,0.50353344,2148.6,2147.4,2.47916028]
[1772661298300,0.50353344,2148.6,2147.4,1.315]
[1772661298605,0.50353344,2148.4,2147.4,1.315]
[1772661299099,0.50353344,2148.2,2146.8,1.298]
[1772661300598,0.50353344,2148.0,2146.9,1.1644697]
[1772661300805,0.50353344,2148.0,2146.8,1.298]
[1772661301115,0.14948499,2147.6,2146.0,3.90475264]
[1772661301407,0.50353344,2147.7,2145.7,3.30336399]
[1772661301408,0.50353344,2147.1,2145.8,2.15271643]
[1772661301608,0.50353344,2147.1,2145.8,3.3177811]
[1772661301799,0.50353344,2147.1,2147.0,0.0011]
[1772661301996,0.50353344,2147.1,2146.1,2.61778133]
[1772661302324,0.50353344,2147.1,2146.8,0.0011]
[1772661302478,1.16441546,2147.0,2146.8,0.0011]
[1772661302947,1.66793468,2147.1,2146.8,0.0011]
[1772661303110,1.16440124,2147.1,2146.8,0.0011]
[1772661304618,1.164307,2147.2,2146.8,0.0011]
[1772661306306,1.66784044,2147.2,2146.8,0.0011]
[1772661307005,0.50353344,2147.1,2146.5,0.0011]
[1772661308621,1.164307,2147.2,2146.5,0.0011]
[1772661309214,0.50353344,2147.2,2146.5,0.0011]
[1772661311311,4.65715477,2147.3,2146.5,0.0011]
[1772661312234,0.50353344,2147.2,2146.5,0.0011]
[1772661313427,0.50353344,2147.0,2146.5,0.0011]
[1772661314093,0.50353344,2147.0,2146.7,0.0011]
[1772661314305,0.50453344,2147.0,2146.5,0.0011]
[1772661314815,0.001,2147.0,2146.5,0.0011]
[1772661315443,0.50453344,2147.0,2146.5,0.0011]
[1772661317236,1.1644697,2146.9,2146.5,0.0011]
[1772661320402,0.50353344,2146.8,2146.5,0.0011]
[1772661321539,1.66810058,2146.8,2146.5,0.0011]
[1772661323945,1.16456714,2146.8,2146.5,0.0011]
[1772661325921,1.16456714,2146.8,2146.7,0.0011]
[1772661327229,0.001,2147.0,2146.7,0.0011]
[1772661330646,0.50453344,2147.0,2146.7,0.0011]
[1772661331758,0.001,2147.0,2146.7,0.0011]
[1772661334353,0.50453344,2147.0,2146.7,0.0011]
[1772661334555,1.1644697,2146.9,2146.7,0.0011]
[1772661335232,1.66898819,2147.0,2146.7,0.0011]
[1772661338170,1.66898819,2147.0,2146.9,0.0011]
[1772661339271,1.66898819,2147.0,2146.7,0.0011]
[1772661339578,0.50353344,2146.9,2146.7,0.0011]
[1772661339746,1.16545475,2147.0,2146.7,0.0011]
[1772661339747,1.1654163,2147.0,2146.7,0.0011]
[1772661341657,0.001,2147.0,2146.7,0.0011]
[1772661343772,0.50453344,2147.0,2146.7,0.0011]
[1772661346468,1.66800314,2146.9,2146.7,0.0011]
[1772661347176,0.50353344,2146.8,2146.7,0.0011]
[1772661348378,1.66805738,2146.8,2146.7,0.0011]
[1772661349172,1.16450208,2146.9,2146.7,0.0011]
[1772661349871,1.66803552,2146.9,2146.7,0.0011]
[1772661350575,0.001,2146.8,2146.7,0.0011]
[1772661351385,0.50453344,2146.8,2146.7,0.0011]
[1772661352667,0.50453344,2146.8,2146.5,0.0011]
[1772661352668,0.50353344,2146.6,2146.5,0.0011]
[1772661354659,1.66816588,2146.6,2146.5,0.0011]
[1772661357683,0.50353344,2146.5,2146.2,0.0011]
[1772661360270,0.50298344,2146.3,2145.4,1.1652443]
[1772661362161,0.50298344,2146.3,2145.2,6.00656718]
[1772661362162,0.50298344,2146.3,2145.6,1.16517524]
[1772661362362,1.66782299,2146.3,2145.6,1.16517524]
[1772661362808,1.66782299,2146.3,2146.1,0.0011]
[1772661362971,2.20710833,2146.7,2146.2,1.345]
[1772661362972,0.001,2146.7,2146.2,1.345]
[1772661364167,0.001,2146.7,2146.2,2.50982641]
[1772661366974,0.001,2146.7,2146.3,0.02067505]
[1772661368604,0.001,2146.7,2146.2,2.50982641]
[1772661370554,0.001,2146.7,2146.1,0.0011]
[1772661370711,1.165581,2146.7,2146.1,0.0011]
[1772661370878,1.16558162,2146.7,2146.1,0.0011]
[1772661371399,0.001,2146.7,2146.1,0.0011]
[1772661371594,1.165582,2146.7,2146.1,0.0011]
[1772661371906,0.001,2146.7,2146.1,0.0011]
[1772661372102,1.16557825,2146.7,2146.1,0.0011]
[1772661372511,1.66856169,2146.7,2146.1,0.0011]
[1772661372815,1.66856169,2146.7,2146.1,1.16600377]
[1772661373615,0.50298344,2146.6,2146.1,1.16600377]
[1772661374506,0.50298344,2146.6,2146.3,0.0011]
[1772661374811,0.001,2146.5,2146.3,0.0011]
[1772661376112,0.001,2146.5,2146.3,1.3471]
[1772661376314,0.50398344,2146.5,2146.3,1.3471]
[1772661376609,0.50398344,2146.5,2146.3,0.0011]
[1772661377414,1.66867556,2146.5,2146.3,0.0011]
[1772661377815,0.50398344,2146.5,2146.3,0.0011]
[1772661378400,0.001,2146.5,2146.3,0.0011]
[1772661382616,0.50398344,2146.5,2146.3,0.0011]
[1772661384013,1.1657279,2146.5,2146.3,0.0011]
[1772661384218,0.50298344,2146.4,2146.3,0.0011]
[1772661384624,0.50298344,2146.4,2146.1,1.3471]
[1772661386025,0.50298344,2146.4,2146.1,2.51199783]
[1772661386324,0.50243344,2146.3,2146.1,1.3471]
[1772661386501,1.66717503,2146.4,2146.1,1.3471]
[1772661387201,0.50243344,2146.4,2146.1,1.3471]
[1772661387628,1.66717903,2146.4,2146.3,0.0011]
[1772661392204,0.50243344,2146.4,2146.3,0.0011]
[1772661392733,1.16572116,2146.5,2146.3,0.0011]
[1772661392734,0.001,2146.5,2146.3,0.0011]
[1772661396936,0.001,2146.8,2146.3,0.0011]
[1772661399343,0.001,2146.8,2146.5,0.0011]
[1772661399708,0.001,2146.6,2146.5,0.0011]
[1772661399914,0.001,2146.8,2146.5,0.0011]
[1772661400413,0.001,2146.8,2146.6,1.345]
[1772661402150,0.50443344,2146.8,2146.6,1.346]
[1772661402816,0.002,2146.8,2146.6,1.346]
[1772661403345,0.002,2146.8,2146.6,2.51061236]
[1772661403736,0.002,2146.8,2146.6,1.346]
[1772661404343,0.001,2146.7,2146.5,0.0011]
[1772661404672,0.001,2146.7,2146.6,1.346]
[1772661405970,0.50343344,2146.7,2146.6,1.346]
[1772661406164,0.50343344,2146.7,2146.5,0.0011]
[1772661406362,0.001,2146.6,2146.5,0.0011]
[1772661407350,0.001,2146.6,2146.5,1.3481]
[1772661408872,0.001,2146.8,2146.5,1.3481]
[1772661409068,0.001,2146.8,2146.5,2.51278669]
[1772661420780,0.50343344,2146.8,2146.5,0.0011]
[1772661422160,0.50343344,2146.8,2146.3,0.0011]
[1772661422483,0.50243344,2146.6,2146.3,0.0011]
[1772661422870,0.50343344,2146.6,2146.3,0.0011]
[1772661423111,0.50343344,2146.6,2146.5,0.0011]
[1772661423460,0.50343344,2146.6,2146.5,1.3541]
[1772661423784,0.50343344,2146.6,2146.3,0.0011]
[1772661423785,0.50343344,2146.6,2146.3,1.3541]
[1772661424787,0.50243344,2146.5,2146.3,1.3541]
[1772661427493,0.50243344,2146.4,2146.3,1.3541]
[1772661428191,0.50243344,2146.4,2146.2,0.0011]
[1772661429573,0.50243344,2146.4,2146.3,1.356]
[1772661432099,0.50243344,2146.3,2146.2,0.0011]
[1772661434204,0.001,2146.6,2146.2,0.0011]
[1772661434998,0.001,2146.6,2146.5,0.0011]
[1772661437599,0.50343344,2146.6,2146.5,0.0011]
[1772661438600,0.001,2146.6,2146.5,0.0011]
[1772661438776,0.001,2146.8,2146.5,0.0011]
[1772661438968,0.001,2146.8,2146.6,1.356]
[1772661440904,0.50443344,2146.8,2146.5,0.0011]
[1772661441110,0.50443344,2146.8,2146.6,1.357]
[1772661446112,0.001,2146.7,2146.6,1.357]
[1772661446418,0.50343344,2146.7,2146.6,1.357]
[1772661447513,0.50343344,2146.7,2146.5,0.0011]
[1772661447818,0.50343344,2146.7,2146.6,1.359]
[1772661448316,0.46540103,2146.8,2146.6,1.359]
[1772661449909,0.46540103,2146.8,2146.5,1.62952628]
[1772661449910,0.46540103,2146.8,2146.5,1.16577636]
[1772661451113,0.46540103,2146.8,2146.6,1.36]
[1772661452007,0.46540103,2146.8,2146.6,2.5246278]
[1772661452212,0.46540103,2146.8,2146.6,1.36]
[1772661453222,0.46540103,2146.8,2146.6,2.52462754]
[1772661456298,0.38250449,2146.8,2146.6,2.52462754]
[1772661457738,0.001,2147.0,2146.7,0.46374992]
[1772661458022,0.46440103,2147.4,2146.7,0.46374992]
[1772661458222,0.46440103,2147.4,2146.9,0.46374992]